Workbook

Sheet 2
A1: Файл скачан с сайта excel2.ru >>>
A2: Перейти к статье >>>
A3: Условное форматирование в MS EXCEL. Цветовые шкалы
A4: Двухцветные шкалы
E6: шаг | F6: =255/(COUNTA(C9:C26)-1) -> 15
B8: Белый-Красный (встроенный) | C8: Белый-Красный (пользовательский, действительно красный) | E8: код цвета (синий и зеленый) | F8: HEX
B9: 0 | C9: 0 | E9: 255 | F9: =DEC2HEX(E9,2) -> FF
B10: =B9+1 -> 1 | C10: =C9+1 -> 1 | E10: =E9-$F$6 -> 240 | F10: =DEC2HEX(E10,2) -> F0
B11: =B10+1 -> 2 | C11: =C10+1 -> 2 | E11: =E10-$F$6 -> 225 | F11: E1
B12: 3 | C12: =C11+1 -> 3 | E12: =E11-$F$6 -> 210 | F12: D2
B13: 4 | C13: =C12+1 -> 4 | E13: =E12-$F$6 -> 195 | F13: C3
B14: 5 | C14: 5 | E14: =E13-$F$6 -> 180 | F14: B4
B15: 6 | C15: 6 | E15: =E14-$F$6 -> 165 | F15: A5
B16: 7 | C16: 7 | E16: =E15-$F$6 -> 150 | F16: 96
B17: 8 | C17: 8 | E17: =E16-$F$6 -> 135 | F17: 87
B18: 9 | C18: 9 | E18: =E17-$F$6 -> 120 | F18: 78
B19: 10 | C19: 10 | E19: =E18-$F$6 -> 105 | F19: 69
B20: 11 | C20: 11 | E20: =E19-$F$6 -> 90 | F20: 5A
B21: 12 | C21: 12 | E21: =E20-$F$6 -> 75 | F21: 4B
B22: 13 | C22: 13 | E22: =E21-$F$6 -> 60 | F22: 3C
B23: 14 | C23: 14 | E23: =E22-$F$6 -> 45 | F23: 2D
B24: 15 | C24: 15 | E24: =E23-$F$6 -> 30 | F24: 1E
B25: 16 | C25: 16 | E25: =E24-$F$6 -> 15 | F25: 0F
B26: 17 | C26: 17 | E26: =E25-$F$6 -> 0 | F26: 00

Sheet движение по прямым
A1: Файл скачан с сайта excel2.ru >>>
A2: Перейти к статье >>>
A3: Условное форматирование в MS EXCEL. Цветовые шкалы
A4: Окрашивание фона ячейки по коду цвета (без VBA)
A7: 1. Двигаемся по главной диагонали куба (оттенки серого: от черного к белому, увеличивая красный и соответственно увеличивая 2 остальных цвета)
B9: введите в С10 код цвета в десятичном формате | E9: HEX | F9: r=g=b
B10: r | C10: 120 | E10: =DEC2HEX(C10,2) -> 78
B11: g | C11: =C10 -> 120 | E11: =DEC2HEX(C11,2) -> 78
B12: b | C12: =C11 -> 120 | E12: 78
B14: 255 | D14: Код цвета в шестнадцатеричном формате
B15: =C10 -> 120 | D15: =CONCATENATE(E10,E11,E12) -> 787878
B16: 0
A20: 2. ребро куба (от красного к желтому, увеличивая зеленый, остальные цвета без изменений)
B22: введите в С24 код цвета в десятичном формате | E22: HEX
B23: r | C23: 255 | E23: =DEC2HEX(C23,2) -> FF
B24: g | C24: 200 | E24: =DEC2HEX(C24,2) -> C8
B25: b | C25: 0 | E25: 00
B27: 0 | D27: Код цвета в шестнадцатеричном формате
B28: =C24 -> 200 | D28: =CONCATENATE(E23,E24,E25) -> FFC800
B29: 255
A32: 3. диагональ грани куба (от красного к зеленому, уменьшая красный и соответственно увеличивая зеленый)
B34: введите в С35 код цвета в десятичном формате | E34: HEX
B35: r | C35: 150 | E35: =DEC2HEX(C35,2) -> 96
B36: g | C36: =255-C35 -> 105 | E36: 69
B37: b | C37: 0 | E37: 00
B39: 255 | D39: Код цвета в шестнадцатеричном формате
B40: =C35 -> 150 | D40: =CONCATENATE(E35,E36,E37) -> 966900
B41: 0
A45: 4. главная диагональ куба (от красного к голубому (Cyan), уменьшая красный и соответственно увеличивая зеленый и синий)
B47: введите в С36 код цвета в десятичном формате | E47: HEX
B48: r | C48: 90 | E48: =DEC2HEX(C48,2) -> 5A
B49: g | C49: =255-C48 -> 165 | E49: A5
B50: b | C50: =255-C48 -> 165 | E50: A5
B52: 255 | D52: Код цвета в шестнадцатеричном формате
B53: =C48 -> 90 | D53: =CONCATENATE(E48,E49,E50) -> 5AA5A5
B54: 0

Sheet vba
A1: Файл скачан с сайта excel2.ru >>>
A2: Перейти к статье >>>
A3: Условное форматирование в MS EXCEL. Цветовые шкалы
A4: Окрашивание фона ячейки по коду цвета (с VBA, пользовательская функция)
F7: В столбце F использована пользовательская функця myrgb(C8;D8;E8)
F8: для просмотра модуля VBA нажмите alt+F11
C10: Заливка фона ячейки (цветовая модель rgb) | I10: Вершины куба rgb
C11: Введите код цвета в диапазон C14:E14
I12: r | J12: g | K12: b | L12: цвет
B13: формат | C13: r | D13: g | E13: b | F13: цвет | I13: 0 | J13: 0 | K13: 0 | L13: =myrgb(I13,J13,K13) ->  | M13: black
B14: десятичный | C14: 100 | D14: 150 | E14: 20 | F14: =myrgb(C14,D14,E14) ->  | I14: 0 | J14: 0 | K14: 255 | L14: =myrgb(I14,J14,K14) ->  | M14: blue
B15: шестнадцатеричный | C15: =DEC2HEX(C14,2) -> 64 | D15: 96 | E15: 14 | I15: 0 | J15: 255 | K15: 0 | L15: =myrgb(I15,J15,K15) ->  | M15: green
I16: 0 | J16: 255 | K16: 255 | L16: =myrgb(I16,J16,K16) ->  | M16: cyan
C17: Проверяем соответствие цвета, заданному коду | I17: 255 | J17: 0 | K17: 0 | L17: =myrgb(I17,J17,K17) ->  | M17: red
I18: 255 | J18: 0 | K18: 255 | L18: =myrgb(I18,J18,K18) ->  | M18: magenta
I19: 255 | J19: 255 | K19: 0 | M19: yellow
I20: 255 | J20: 255 | K20: 255 | M20: white

Sheet 3
A1: Файл скачан с сайта excel2.ru >>>
A2: Перейти к статье >>>
A3: Условное форматирование в MS EXCEL. Цветовые шкалы
A4: Трехцветные шкалы
B7: Красный-Желтый-Зеленый (встроенный) | C7: Красный-Желтый-Зеленый (пользовательский, действительно красный, желтый, зеленый)
B8: 10 | C8: 10 | E8: красный
B9: =B8-1 -> 9 | C9: =C8-1 -> 9
B10: =B9-1 -> 8 | C10: =C9-1 -> 8
B11: 7 | C11: 7
B12: 6 | C12: 6
B13: 5 | C13: 5 | E13: желтый
B14: 4 | C14: 4
B15: 3 | C15: 3
B16: 2 | C16: 2
B17: 1 | C17: 1
B18: 0 | C18: 0 | E18: зеленый

Sheet EXCEL2.RU
A1: EXCEL2.RU - профессиональные приемы для всех >>>
A2: Хорошая новость! Большинство задач, которые Вы хотите решить с помощью MS EXCEL – уже давно решены! На нашем сайте Вы найдете решения множества из наиболее часто встречающихся задач. Сайт содержит более 500 качественно оформленных статей с файлами примеров.
A3: Миссия нашего сайта - превратить Вашу работу в MS EXCEL в приятное времяпрепровождение и ускорить решение Ваших задач. Мы постоянно работаем над содержанием и оформлением нашего сайта и благодарим активных пользователей за поддержку и неоценимую помощь в нашей работе.

Sheet EXCEL2.RU (2) (hidden)
A1: EXCEL2.RU - профессиональные приемы для всех >>>
A2: Хорошая новость! Большинство задач, которые Вы хотите решить с помощью MS EXCEL – уже давно решены! На нашем сайте Вы найдете решения множества из наиболее часто встречающихся задач. Сайт содержит более 500 качественно оформленных статей с файлами примеров.
A3: Миссия нашего сайта - превратить Вашу работу в MS EXCEL в приятное времяпрепровождение и ускорить решение Ваших задач. Мы постоянно работаем над содержанием и оформлением нашего сайта и благодарим активных пользователей за поддержку и неоценимую помощь в нашей работе.
